Workbook

Sheet COMECE AQUI - LEIA ATENTAMENTE
B1: CALCULADORA BACKUP FOX ESS
B5: TERMOS DE USO E RECOMENDAÇÕES | M5: OS CÁLCULOS DESTE ARQUIVO NÃO CONSIDERAM:
B6: A Calculadora de Backup da Fox ESS foi desenvolvida para auxiliar, de forma educativa, no pré-dimensionamento de soluções de backup de energia. Ressaltamos que os resultados gerados são apenas estimativas e não substituem um projeto técnico profissional. A Fox ESS não se responsabiliza por eventuais inadequações decorrentes do uso desta ferramenta. Para garantir que o sistema atenda plenamente às suas demandas, é indispensável a análise de um engenheiro ou especialista qualificado. Ter um sistema híbrido bem dimensionado é essencial para manter a continuidade de energia em aplicações residenciais, comerciais e industriais. A autonomia máxima considerada nesta ferramenta é de 24h. | M6: - Alimentação das cargas por outras fontes (Ex. Fotovoltaico/Solar, Gerador Diesel, Etc); - Coeficiente de simultaniedade das cargas (A planilha considera tudo ligado ao mesmo tempo); - Tempo necessário e Corrente Recomendada para recarga das baterias.

Sheet INSTRUÇÕES DE USO
B1: CALCULADORA BACKUP FOX ESS
B5: INSTRUÇÕES
B6: Para o uso desta planilha, é extremamente importante que seja feito um levantamento prévio das cargas que serão alimentadas pelo sistema. 1 - A planilha é previamente preenchida com dados de exemplo que devem ser alterados de acordo com os dados do cliente. 2 - Na aba de Dimensionamento, selecione dentre as opções disponíveis, o tempo de autonomia desejado pelo cliente 3 - Selecione o Tipo de Rede do cliente dentre as opções disponíveis. 4 - Preencha a Lista de Equipamentos nos campos editáveis (em roxo), de acordo com o levantamento feito. Ajuste os nomes dos aparelhos, potências, quantidades, o tempo de uso, o Fator de Potênica (FP - cargas 100% reativas como Notebook e Roteador tem FP = 1) e a Corrente de Pico (Ip/In) conforme necessário. NOTA1: As células que ficarem amarelas e/ou vermelhas, servem como um mero indicativo de potência mais alta (acima de 1kW) ou consumo alto (acima de 5 kWh). 5 - Após todas as informações preenchidas, a planilha apresenta na aba RESULTADO, o modelo de inversor e a quantidade sugerida, assim como a quantidade de baterias recomendadas no total. Agora é só conferir o kit com o distribuidor de sua preferência e ser feliz com a Fox ESS! NOTA2: Por padrão, a planilha considera DoD (Profundidade de Descarga) das baterias de 90%, e eficiência de 95%. A eficiência dos inversores varia conforme modelo. NOTA3: A calculadora considera o balanceamento das baterias por inversor (todos inversores devem ter a mesma quantidade de baterias entre si). LEMBRE-SE: Essa calculadora foi desenvolvida para auxiliar no pré-dimensionamento de soluções de backup de energia e ressaltamos que os resultados gerados são apenas estimativas e não substituem um projeto técnico profissional. Para garantir que o sistema atenda plenamente às suas demandas, é indispensável a análise de um engenheiro ou especialista qualificado. A Fox-ESS não se responsabiliza por eventuais inadequações decorrentes do uso desta ferramenta.

Sheet DIMENSIONAMENTO
B1: CALCULADORA BACKUP FOX ESS
C5: Campos Editáveis
B6: Autonomia ( Horas) | C6: 2
B7: Tipo de rede do Cliente: | C7: Bifásica (127/220 V)
B8: Aparelho | C8: Potência Nominal [W] | D8: Tensão Nominal [V] | E8: Quantidade | F8: Tempo Ligado [h] | G8: FP | H8: Ip/In | I8: Potência Total [W] | J8: Potência de Pico [kW] | K8: Consumo diário [Wh]
A9: 1 | B9: Laptop | C9: 100 | D9: 220 | E9: 2 | F9: 24 | G9: 1.0 | H9: 1.0 | I9: =IFERROR(IF(Equipmentos[[#This Row],[Quantidade]]="","",Equipmentos[[#This Row],[Potência Nominal '[W']]]*Equipmentos[[#This Row],[Quantidade]]/IF(Equipmentos[[#This Row],[Potência Nominal '[W']]]="",1,Equipmentos[[#This Row],[FP]])),"") -> 200 | J9: =IF(Equipmentos[[#This Row],[Potência Nominal '[W']]]="",0,Equipmentos[[#This Row],[Potência Total '[W']]]*Equipmentos[[#This Row],[Ip/In]]) -> 200 | K9: =IFERROR(IF(Equipmentos[[#This Row],[Quantidade]]="","",Equipmentos[[#This Row],[Potência Total '[W']]]*Equipmentos[[#This Row],[Tempo Ligado '[h']]]),"") -> 4800
A10: 2 | B10: Modem / Wifi / Internet | C10: 20 | D10: 220 | E10: 1 | F10: 24 | G10: 1.0 | H10: 1.0 | I10: =IFERROR(IF(Equipmentos[[#This Row],[Quantidade]]="","",Equipmentos[[#This Row],[Potência Nominal '[W']]]*Equipmentos[[#This Row],[Quantidade]]/IF(Equipmentos[[#This Row],[Potência Nominal '[W']]]="",1,Equipmentos[[#This Row],[FP]])),"") -> 20 | J10: =IF(Equipmentos[[#This Row],[Potência Nominal '[W']]]="",0,Equipmentos[[#This Row],[Potência Total '[W']]]*Equipmentos[[#This Row],[Ip/In]]) -> 20 | K10: =IFERROR(IF(Equipmentos[[#This Row],[Quantidade]]="","",Equipmentos[[#This Row],[Potência Total '[W']]]*Equipmentos[[#This Row],[Tempo Ligado '[h']]]),"") -> 480
A11: 3 | B11: Impressora | C11: 50 | D11: 220 | E11: 1 | F11: 0 | G11: 1.0 | H11: 1.0 | I11: =IFERROR(IF(Equipmentos[[#This Row],[Quantidade]]="","",Equipmentos[[#This Row],[Potência Nominal '[W']]]*Equipmentos[[#This Row],[Quantidade]]/IF(Equipmentos[[#This Row],[Potência Nominal '[W']]]="",1,Equipmentos[[#This Row],[FP]])),"") -> 50 | J11: =IF(Equipmentos[[#This Row],[Potência Nominal '[W']]]="",0,Equipmentos[[#This Row],[Potência Total '[W']]]*Equipmentos[[#This Row],[Ip/In]]) -> 50 | K11: =IFERROR(IF(Equipmentos[[#This Row],[Quantidade]]="","",Equipmentos[[#This Row],[Potência Total '[W']]]*Equipmentos[[#This Row],[Tempo Ligado '[h']]]),"") -> 0
A12: 4 | B12: Luzes | C12: 15 | D12: 220 | E12: 10 | F12: 6 | G12: 1.0 | H12: 1.0 | I12: =IFERROR(IF(Equipmentos[[#This Row],[Quantidade]]="","",Equipmentos[[#This Row],[Potência Nominal '[W']]]*Equipmentos[[#This Row],[Quantidade]]/IF(Equipmentos[[#This Row],[Potência Nominal '[W']]]="",1,Equipmentos[[#This Row],[FP]])),"") -> 150 | J12: =IF(Equipmentos[[#This Row],[Potência Nominal '[W']]]="",0,Equipmentos[[#This Row],[Potência Total '[W']]]*Equipmentos[[#This Row],[Ip/In]]) -> 150 | K12: =IFERROR(IF(Equipmentos[[#This Row],[Quantidade]]="","",Equipmentos[[#This Row],[Potência Total '[W']]]*Equipmentos[[#This Row],[Tempo Ligado '[h']]]),"") -> 900
A13: 5 | B13: TV | C13: 68 | D13: 220 | E13: 1 | F13: 4 | G13: 1.0 | H13: 1.0 | I13: =IFERROR(IF(Equipmentos[[#This Row],[Quantidade]]="","",Equipmentos[[#This Row],[Potência Nominal '[W']]]*Equipmentos[[#This Row],[Quantidade]]/IF(Equipmentos[[#This Row],[Potência Nominal '[W']]]="",1,Equipmentos[[#This Row],[FP]])),"") -> 68 | J13: =IF(Equipmentos[[#This Row],[Potência Nominal '[W']]]="",0,Equipmentos[[#This Row],[Potência Total '[W']]]*Equipmentos[[#This Row],[Ip/In]]) -> 68 | K13: =IFERROR(IF(Equipmentos[[#This Row],[Quantidade]]="","",Equipmentos[[#This Row],[Potência Total '[W']]]*Equipmentos[[#This Row],[Tempo Ligado '[h']]]),"") -> 272
A14: 6 | B14: MicroOndas | C14: 800 | D14: 220 | E14: 1 | F14: 0.3 | G14: 1.0 | H14: 1.0 | I14: =IFERROR(IF(Equipmentos[[#This Row],[Quantidade]]="","",Equipmentos[[#This Row],[Potência Nominal '[W']]]*Equipmentos[[#This Row],[Quantidade]]/IF(Equipmentos[[#This Row],[Potência Nominal '[W']]]="",1,Equipmentos[[#This Row],[FP]])),"") -> 800 | J14: =IF(Equipmentos[[#This Row],[Potência Nominal '[W']]]="",0,Equipmentos[[#This Row],[Potência Total '[W']]]*Equipmentos[[#This Row],[Ip/In]]) -> 800 | K14: =IFERROR(IF(Equipmentos[[#This Row],[Quantidade]]="","",Equipmentos[[#This Row],[Potência Total '[W']]]*Equipmentos[[#This Row],[Tempo Ligado '[h']]]),"") -> 240
A15: 7 | B15: Air Fryer | C15: 1500 | D15: 220 | E15: 0 | F15: 0 | G15: 1.0 | H15: 1.0 | I15: =IFERROR(IF(Equipmentos[[#This Row],[Quantidade]]="","",Equipmentos[[#This Row],[Potência Nominal '[W']]]*Equipmentos[[#This Row],[Quantidade]]/IF(Equipmentos[[#This Row],[Potência Nominal '[W']]]="",1,Equipmentos[[#This Row],[FP]])),"") -> 0 | J15: =IF(Equipmentos[[#This Row],[Potência Nominal '[W']]]="",0,Equipmentos[[#This Row],[Potência Total '[W']]]*Equipmentos[[#This Row],[Ip/In]]) -> 0 | K15: =IFERROR(IF(Equipmentos[[#This Row],[Quantidade]]="","",Equipmentos[[#This Row],[Potência Total '[W']]]*Equipmentos[[#This Row],[Tempo Ligado '[h']]]),"") -> 0
A16: 8 | B16: Refrigerador | C16: 250 | D16: 220 | E16: 1 | F16: 24 | G16: 1.0 | H16: 1.0 | I16: =IFERROR(IF(Equipmentos[[#This Row],[Quantidade]]="","",Equipmentos[[#This Row],[Potência Nominal '[W']]]*Equipmentos[[#This Row],[Quantidade]]/IF(Equipmentos[[#This Row],[Potência Nominal '[W']]]="",1,Equipmentos[[#This Row],[FP]])),"") -> 250 | J16: =IF(Equipmentos[[#This Row],[Potência Nominal '[W']]]="",0,Equipmentos[[#This Row],[Potência Total '[W']]]*Equipmentos[[#This Row],[Ip/In]]) -> 250 | K16: =IFERROR(IF(Equipmentos[[#This Row],[Quantidade]]="","",Equipmentos[[#This Row],[Potência Total '[W']]]*Equipmentos[[#This Row],[Tempo Ligado '[h']]]),"") -> 6000
A17: 9 | B17: Freezer | C17: 150 | D17: 220 | E17: 1 | F17: 24 | G17: 1.0 | H17: 1.0 | I17: =IFERROR(IF(Equipmentos[[#This Row],[Quantidade]]="","",Equipmentos[[#This Row],[Potência Nominal '[W']]]*Equipmentos[[#This Row],[Quantidade]]/IF(Equipmentos[[#This Row],[Potência Nominal '[W']]]="",1,Equipmentos[[#This Row],[FP]])),"") -> 150 | J17: =IF(Equipmentos[[#This Row],[Potência Nominal '[W']]]="",0,Equipmentos[[#This Row],[Potência Total '[W']]]*Equipmentos[[#This Row],[Ip/In]]) -> 150 | K17: =IFERROR(IF(Equipmentos[[#This Row],[Quantidade]]="","",Equipmentos[[#This Row],[Potência Total '[W']]]*Equipmentos[[#This Row],[Tempo Ligado '[h']]]),"") -> 3600
A18: 10 | B18: Maquina Lavar | C18: 1500 | D18: 220 | E18: 1 | F18: 1 | G18: 1.0 | H18: 1.0 | I18: =IFERROR(IF(Equipmentos[[#This Row],[Quantidade]]="","",Equipmentos[[#This Row],[Potência Nominal '[W']]]*Equipmentos[[#This Row],[Quantidade]]/IF(Equipmentos[[#This Row],[Potência Nominal '[W']]]="",1,Equipmentos[[#This Row],[FP]])),"") -> 1500 | J18: =IF(Equipmentos[[#This Row],[Potência Nominal '[W']]]="",0,Equipmentos[[#This Row],[Potência Total '[W']]]*Equipmentos[[#This Row],[Ip/In]]) -> 1500 | K18: =IFERROR(IF(Equipmentos[[#This Row],[Quantidade]]="","",Equipmentos[[#This Row],[Potência Total '[W']]]*Equipmentos[[#This Row],[Tempo Ligado '[h']]]),"") -> 1500
A19: 11 | B19: Chuveiro | C19: 7800 | D19: 220 | E19: 0 | F19: 0.5 | G19: 1.0 | H19: 1.0 | I19: =IFERROR(IF(Equipmentos[[#This Row],[Quantidade]]="","",Equipmentos[[#This Row],[Potência Nominal '[W']]]*Equipmentos[[#This Row],[Quantidade]]/IF(Equipmentos[[#This Row],[Potência Nominal '[W']]]="",1,Equipmentos[[#This Row],[FP]])),"") -> 0 | J19: =IF(Equipmentos[[#This Row],[Potência Nominal '[W']]]="",0,Equipmentos[[#This Row],[Potência Total '[W']]]*Equipmentos[[#This Row],[Ip/In]]) -> 0 | K19: =IFERROR(IF(Equipmentos[[#This Row],[Quantidade]]="","",Equipmentos[[#This Row],[Potência Total '[W']]]*Equipmentos[[#This Row],[Tempo Ligado '[h']]]),"") -> 0
A20: 12 | B20: Ar Condicionado 9000 BTU | C20: 850 | D20: 220 | E20: 2 | F20: 12 | G20: 1.0 | H20: 1.0 | I20: =IFERROR(IF(Equipmentos[[#This Row],[Quantidade]]="","",Equipmentos[[#This Row],[Potência Nominal '[W']]]*Equipmentos[[#This Row],[Quantidade]]/IF(Equipmentos[[#This Row],[Potência Nominal '[W']]]="",1,Equipmentos[[#This Row],[FP]])),"") -> 1700 | J20: =IF(Equipmentos[[#This Row],[Potência Nominal '[W']]]="",0,Equipmentos[[#This Row],[Potência Total '[W']]]*Equipmentos[[#This Row],[Ip/In]]) -> 1700 | K20: =IFERROR(IF(Equipmentos[[#This Row],[Quantidade]]="","",Equipmentos[[#This Row],[Potência Total '[W']]]*Equipmentos[[#This Row],[Tempo Ligado '[h']]]),"") -> 20400
A21: 13 | B21: Ar Condicionado 12000 BTU | C21: 1200 | D21: 220 | E21: 0 | F21: 4 | G21: 1.0 | H21: 1.0 | I21: =IFERROR(IF(Equipmentos[[#This Row],[Quantidade]]="","",Equipmentos[[#This Row],[Potência Nominal '[W']]]*Equipmentos[[#This Row],[Quantidade]]/IF(Equipmentos[[#This Row],[Potência Nominal '[W']]]="",1,Equipmentos[[#This Row],[FP]])),"") -> 0 | J21: =IF(Equipmentos[[#This Row],[Potência Nominal '[W']]]="",0,Equipmentos[[#This Row],[Potência Total '[W']]]*Equipmentos[[#This Row],[Ip/In]]) -> 0 | K21: =IFERROR(IF(Equipmentos[[#This Row],[Quantidade]]="","",Equipmentos[[#This Row],[Potência Total '[W']]]*Equipmentos[[#This Row],[Tempo Ligado '[h']]]),"") -> 0
A22: 14 | B22: Aspirador de Pó | C22: 1400 | D22: 220 | E22: 0 | F22: 0 | G22: 1.0 | H22: 1.0 | I22: =IFERROR(IF(Equipmentos[[#This Row],[Quantidade]]="","",Equipmentos[[#This Row],[Potência Nominal '[W']]]*Equipmentos[[#This Row],[Quantidade]]/IF(Equipmentos[[#This Row],[Potência Nominal '[W']]]="",1,Equipmentos[[#This Row],[FP]])),"") -> 0 | J22: =IF(Equipmentos[[#This Row],[Potência Nominal '[W']]]="",0,Equipmentos[[#This Row],[Potência Total '[W']]]*Equipmentos[[#This Row],[Ip/In]]) -> 0 | K22: =IFERROR(IF(Equipmentos[[#This Row],[Quantidade]]="","",Equipmentos[[#This Row],[Potência Total '[W']]]*Equipmentos[[#This Row],[Tempo Ligado '[h']]]),"") -> 0
A23: 15 | B23: Secador De cabelo | C23: 100 | D23: 220 | E23: 1 | F23: 0 | G23: 1.0 | H23: 1.0 | I23: =IFERROR(IF(Equipmentos[[#This Row],[Quantidade]]="","",Equipmentos[[#This Row],[Potência Nominal '[W']]]*Equipmentos[[#This Row],[Quantidade]]/IF(Equipmentos[[#This Row],[Potência Nominal '[W']]]="",1,Equipmentos[[#This Row],[FP]])),"") -> 100 | J23: =IF(Equipmentos[[#This Row],[Potência Nominal '[W']]]="",0,Equipmentos[[#This Row],[Potência Total '[W']]]*Equipmentos[[#This Row],[Ip/In]]) -> 100 | K23: =IFERROR(IF(Equipmentos[[#This Row],[Quantidade]]="","",Equipmentos[[#This Row],[Potência Total '[W']]]*Equipmentos[[#This Row],[Tempo Ligado '[h']]]),"") -> 0
A24: 16 | B24: Outros | C24: 10000 | D24: 220 | E24: 0 | F24: 0.5 | G24: 1.0 | H24: 1.0 | I24: =IFERROR(IF(Equipmentos[[#This Row],[Quantidade]]="","",Equipmentos[[#This Row],[Potência Nominal '[W']]]*Equipmentos[[#This Row],[Quantidade]]/IF(Equipmentos[[#This Row],[Potência Nominal '[W']]]="",1,Equipmentos[[#This Row],[FP]])),"") -> 0 | J24: =IF(Equipmentos[[#This Row],[Potência Nominal '[W']]]="",0,Equipmentos[[#This Row],[Potência Total '[W']]]*Equipmentos[[#This Row],[Ip/In]]) -> 0 | K24: =IFERROR(IF(Equipmentos[[#This Row],[Quantidade]]="","",Equipmentos[[#This Row],[Potência Total '[W']]]*Equipmentos[[#This Row],[Tempo Ligado '[h']]]),"") -> 0
I26: =SUM(I9:I24)/1000 -> 4.99 | J26: =SUM(J9:J24)/1000 -> 4.99 | K26: =SUM(K9:K24)/1000 -> 38.19
I27: Potência Nominal Total [kW] | J27: Potência de Pico Total [kW] | K27: Consumo diário Total [kWh]

Sheet PRODUCT DATA (hidden)
X1: 384 | Y1: 27
B2: Fox ESS name | C2: Max Power EPS [W] | D2: Rated Voltage [V] | E2: Peak Power (60s) [W] | F2: Picture | G2: Efficiency | H2: Bat Máx Current | I2: Bat Input | J2: Max. Array Power | K2: Recommended PV Power | L2: Max PV Voltage | M2: Min MPPT Voltage | N2: Max MPPT Voltage | O2: Max PV I | P2: PV Isc | Q2: MPPTs | R2: Input per MPPT
B3: H1-5.0-E-G2 | C3: 5000 | D3: 220 | E3: 5500 | G3: 97.00% | H3: 50 | I3: 1 | J3: 10000 | K3: 10000 | L3: 600 | M3: 80 | N3: 550 | O3: 16 | P3: 20 | Q3: 2 | R3: 1
B4: KH7.5 | C4: 7500 | D4: 220 | E4: 10000 | G4: 97.20% | H4: 50 | I4: 1 | J4: 16000 | K4: 12000 | L4: 600 | M4: 80 | N4: 500 | O4: 16 | P4: 20 | Q4: 3 | R4: 1
B5: KH10.5 | C5: 10500 | D5: 220 | E5: 15000 | G5: 97.20% | H5: 50 | I5: 1 | J5: 21000 | K5: 15000 | L5: 600 | M5: 80 | N5: 500 | O5: 16 | P5: 20 | Q5: 4 | R5: 1
B6: H1-5.7-US | C6: 5700 | D6: 127/220 | E6: 7695 | G6: 97.00% | H6: 50 | I6: 1 | J6: 11400 | K6: 11400 | L6: 600 | M6: 80 | N6: 550 | O6: 14 | P6: 28 | Q6: 3 | R6: 1
B7: H1-7.5-US | C7: 7500 | D7: 127/220 | E7: 10125 | G7: 97.00% | H7: 50 | I7: 1 | J7: 15000 | K7: 15000 | L7: 600 | M7: 80 | N7: 550 | O7: 14 | P7: 28 | Q7: 3 | R7: 1
B8: H1-11.4-US | C8: 11400 | D8: 127/220 | E8: 15389 | G8: 97.00% | H8: 50 | I8: 1 | J8: 22800 | K8: 22800 | L8: 600 | M8: 80 | N8: 550 | O8: 14 | P8: 28 | Q8: 3 | R8: 1
B9: H3-PRO-11.5 | C9: 11500 | D9: 220 | E9: 12600 | G9: 97.30% | H9: 50 | I9: 2 | J9: 22000 | K9: 16500 | L9: 1000 | M9: 150 | N9: 850 | O9: 16 | P9: 20 | Q9: 3 | R9: 2
B10: H3-PRO-20.0 | C10: 20000 | D10: 380 | E10: 24000 | G10: 97.30% | H10: 50 | I10: 2 | J10: 40000 | K10: 30000 | L10: 1000 | M10: 150 | N10: 850 | O10: 16 | P10: 20 | Q10: 3 | R10: 2
B11: H3-PRO-17.3 | C11: 17300 | D11: 220 | E11: 19000 | G11: 97.30% | H11: 50 | I11: 2 | J11: 34000 | K11: 25500 | L11: 1000 | M11: 150 | N11: 850 | O11: 16 | P11: 20 | Q11: 3 | R11: 2
B12: H3-PRO-30.0 | C12: 30000 | D12: 380 | E12: 36000 | G12: 97.30% | H12: 50 | I12: 2 | J12: 60000 | K12: 45000 | L12: 1000 | M12: 150 | N12: 850 | O12: 16 | P12: 20 | Q12: 3 | R12: 2
B14: Fox ESS name | C14: Tech espc. | D14: Nominal Voltage | E14: Column1 | F14: Weight | G14: Column2 | H14: Picture | J14: Model | K14: Nom. Capacity | L14: Nom. Power | M14: Peak Power | N14: DoD | O14: RT Efficiency | P14: Voltage | Q14: Nom. Current | R14: Picture | S14: Recom. Charge Cur.
B15: HV Junction-Box | C15: - | D15: - | E15: - | F15: - | G15: - | J15: EP5 | K15: 5.18 | L15: =K15 -> 5.18 | M15: =Bateries[[#This Row],[Nom. Power]]*2.41 -> 12.4838 | N15: 90% | O15: 95% | P15: 192 | Q15: 27 | S15: =Bateries[[#This Row],[Nom. Current]]/2 -> 13.5
B16: AI Link (A-1000) | C16: - | D16: - | E16: - | F16: - | G16: - | J16: EP11 | K16: 10.36 | L16: =K16 -> 10.36 | M16: =Bateries[[#This Row],[Nom. Power]]*2.41 -> 24.9676 | N16: 90% | O16: 95% | P16: 384 | Q16: 27 | S16: =Bateries[[#This Row],[Nom. Current]]/2 -> 13.5
B17: Quadro Baixa Tensão | J17: EP6 | K17: 5.76 | L17: =Bateries[[#This Row],[Voltage]]*Bateries[[#This Row],[Nom. Current]]/1000 -> 5.76 | M17: =65/Q17*Bateries[[#This Row],[Nom. Power]] -> 12.48 | N17: 90% | O17: 95% | P17: 192 | Q17: 30 | S17: =Bateries[[#This Row],[Nom. Current]]/2 -> 15
B18: Fox Hub G2 | J18: EP12 | K18: 11.52 | L18: 11.52 | M18: =65/Bateries[[#This Row],[Nom. Current]]*Bateries[[#This Row],[Nom. Power]] -> 24.96 | N18: 90% | O18: 95% | P18: 384 | Q18: 30 | S18: =Bateries[[#This Row],[Nom. Current]]/2 -> 15

Sheet CALC. (hidden)
B2: Warnings: | C2: Reason | G2: Grid Selected | H2: kW required:
B3: NÃO RECOMENDADO PARA ESTA APLICAÇÃO | C3: Too much Power | G3: =DIMENSIONAMENTO!C7 -> Bifásica (127/220 V) | H3: =DIMENSIONAMENTO!I26*1000 -> 4988.00
B4: NÃO INDICADO PARA OPERAÇÃO EM BACKUP OU OFF-GRID | C4: Too much Power
B5: PARALELISMO PERMITIDO APENAS COM INCLUSÃO DO FOX HUB (VERIFIQUE COMPATIBILIDADE) | C5: H1-US in Parallel | E5: REF | F5: QTY | G5: Single Phase | H5: Split phase | I5: 3x 220 | J5: 3x 380 | L5: kWh required: | M5: =IF(DIMENSIONAMENTO!K26=0,"",DIMENSIONAMENTO!K26/24*DIMENSIONAMENTO!C6) -> 3.182666667
B6: PARALELISMO PERMITIDO APENAS COM INCLUSÃO DO AI LINK | C6: H3-Pro in Parallel | E6: 1 | F6: 1 | G6: ='PRODUCT DATA'!C3*'PRODUCT DATA'!G3 -> 4850 | H6: ='PRODUCT DATA'!$C$6*F6*'PRODUCT DATA'!G6 -> 5529 | I6: ='PRODUCT DATA'!$C$9*F6*'PRODUCT DATA'!G9 -> 11190 | J6: ='PRODUCT DATA'!$C$10*F6*'PRODUCT DATA'!G10 -> 19460
B7: PARALELISMO PERMITIDO APENAS COM INCLUSÃO DO EPS BOX | C7: H3-E in Parallel | E7: 2 | F7: 2 | I7: =I6*F7 -> 22379 | J7: =J6*F7 -> 38920 | L7: Qty | M7: Capacity EP5 | N7: Power EP5 | O7: Peak Power EP5 | P7: Efficiency EP5 | Q7: Capacity EP11 | R7: Power EP11 | S7: Peak Power EP11 | T7: Efficieny EP11
B8: VERIFIQUE AS TENSÕES NOMINAIS DOS APARELHOS E TIPO DE REDE | C8: Grid type and Load Voltage incompatible | E8: 3 | F8: 3
B9: PREENCHA O FATOR DE POTÊNCIA DE TODOS OS APARELHOS | C9: PF not filled | E9: 4 | F9: 4 | L9: 1 | M9: ='PRODUCT DATA'!$L$15*'PRODUCT DATA'!$N$15*'PRODUCT DATA'!$O$15*N12 -> 4.43 | N9: =ROUNDDOWN(_xlfn.LET( _xlpm.entradas, IF(ISNUMBER(MATCH('CALC.'!$G$68,'PRODUCT DATA'!$B$9:$B$12,0)),2,1), _xlpm.I_banco, 'PRODUCT DATA'!$Q$15*$N$12, _xlpm.I_inversor, VLOOKUP('CALC.'!$G$68,'PRODUCT DATA'!$B$2:$I$12,7,0)*_xlpm.entradas*'CALC.'!$H$68, 'PRODUCT DATA'!$P$15*MIN(_xlpm.I_banco,_xlpm.I_inversor)/1000 ), 2 ) -> 5.18 | O9: =BatCalc[[#This Row],[Power EP5]]*2.41 -> 12.48 | P9: ='PRODUCT DATA'!$O$15 -> 95% | Q9: ='PRODUCT DATA'!$L$16*'PRODUCT DATA'!$N$16*'PRODUCT DATA'!$O$16*R12 -> 8.86 | R9: =ROUNDDOWN( _xlfn.LET( _xlpm.entradas, IF(ISNUMBER(MATCH('CALC.'!$G$68,'PRODUCT DATA'!$B$9:$B$12,0)),2,1), _xlpm.corrente_banco, 'PRODUCT DATA'!$Q$16*$R$12, _xlpm.corrente_inversores, VLOOKUP('CALC.'!$G$68,'PRODUCT DATA'!$B$2:$I$12,7,0)*_xlpm.entradas*'CALC.'!$H$68, 'PRODUCT DATA'!$P$16*MIN(_xlpm.corrente_banco,_xlpm.corrente_inversores)/1000 ), 2 ) -> 10.36 | S9: =BatCalc[[#This Row],[Power EP11]]*2.41 -> 24.97 | T9: ='PRODUCT DATA'!$O$16 -> 95%
B10: PREENCHA A CORRENTE DE PICO (Ip/In) DE TODOS OS APARELHOS | C10: Peak Current not filled | E10: 5 | F10: 1 | G10: ='PRODUCT DATA'!C4*'PRODUCT DATA'!G4 -> 7290 | H10: ='PRODUCT DATA'!$C$7*F10*'PRODUCT DATA'!G7 -> 7275
B11: PREENCHA A TENSÃO NOMINAL DE TODOS OS APARELHOS | C11: Load voltage not filled | E11: 6 | F11: 2 | G11: =G$10*$F11 -> 14580 | H11: =H10*F11 -> 14550 | L11: Battery per Inv input | N11: =IFERROR(ROUNDUP(IF(OR('CALC.'!G68='PRODUCT DATA'!B9,'CALC.'!G68='PRODUCT DATA'!B10,'CALC.'!G68='PRODUCT DATA'!B11,'CALC.'!G68='PRODUCT DATA'!B12),ROUNDUP(N12/'CALC.'!H68,0)*'CALC.'!H68/RESULTADO!C10/2,RESULTADO!C13/RESULTADO!C10),0),"") -> 1 | R11: =ROUNDUP(IF(OR('CALC.'!G68='PRODUCT DATA'!B9,'CALC.'!G68='PRODUCT DATA'!B10,'CALC.'!G68='PRODUCT DATA'!B11,'CALC.'!G68='PRODUCT DATA'!B12),RESULTADO!C15/RESULTADO!C10/2,RESULTADO!C15/RESULTADO!C10),0) -> 1
B12: MÁXIMO DE 4 BATERIAS POR INVERSOR - UTILIZE EXCLUSIVAMENTE BATERIAS EP11 | C12: Too much Authonomy | E12: 7 | F12: 3 | L12: Calc over Nom Power: | N12: =ROUNDUP( _xlfn.LET( _xlpm.capacidade, VLOOKUP("EP5",'PRODUCT DATA'!$J$14:$S$19,2,0), _xlpm.dod, VLOOKUP("EP5",'PRODUCT DATA'!$J$14:$S$19,5,0), _xlpm.eficiencia, VLOOKUP("EP5",'PRODUCT DATA'!$J$14:$S$19,6,0), M5/(_xlpm.capacidade*_xlpm.dod*_xlpm.eficiencia) ) /'CALC.'!$H$68,0)*'CALC.'!$H$68 -> 1 | R12: =ROUNDUP( _xlfn.LET( _xlpm.capacidade, VLOOKUP("EP11",'PRODUCT DATA'!$J$14:$S$19,2,0), _xlpm.dod, VLOOKUP("EP11",'PRODUCT DATA'!$J$14:$S$19,5,0), _xlpm.eficiencia, VLOOKUP("EP11",'PRODUCT DATA'!$J$14:$S$19,6,0), M5/(_xlpm.capacidade*_xlpm.dod*_xlpm.eficiencia) ) /'CALC.'!$H$68,0)*'CALC.'!$H$68 -> 1
B13: MÁXIMO DE 4 BATERIAS POR INVERSOR - AUMENTE A QUANTIDADE DE INVERSORES (AUMENTE AS CARGAS EM KW) | C13: Too much Authonomy | E13: 8 | F13: 4 | L13: Calc over Peak Power: | N13: =ROUNDUP(O9/H32,0) -> 1 | R13: =ROUNDUP(S9/H32,0) -> 1
B14: MÁXIMO DE 8 BATERIAS POR INVERSOR - AUMENTE A QUANTIDADE DE INVERSORES (AUMENTE AS CARGAS EM KW) | C14: Too much Authonomy | E14: 9 | F14: 5 | L14: Final Decision: | N14: =IF(N13=0,999,MAX(N12:N13)) -> 1 | R14: =IF(R13=0,999,MAX(R12:R13)) -> 1
B15: JUNCTION BOX OBRIGATÓRIA APENAS EM CASO DE USO DA BATERIA EP5 | C15: Batteries in Parallel | E15: 10 | F15: 1 | G15: ='PRODUCT DATA'!C5*'PRODUCT DATA'!G5 -> 10206 | H15: ='PRODUCT DATA'!C8*'PRODUCT DATA'!G8 -> 11058 | I15: ='PRODUCT DATA'!$C$11*F15*'PRODUCT DATA'!G11 -> 16833 | J15: ='PRODUCT DATA'!$C$12*F15*'PRODUCT DATA'!G12 -> 29190
B16: POTÊNCIA DAS BATERIAS INSUFICIENTE NO MODO OFF-GRID - CONSIDERE MAIS BATERIAS (AUMENTANDO A AUTONOMIA) OU OUTRAS FONTES DE ENERGIA (EX.: FOTOVOLTAICO) | C16: Low Bat Power | E16: 11 | F16: 2 | G16: =G$15*$F16 -> 20412 | H16: =H$15*$F16 -> 22116 | I16: =$I$15*F16 -> 33666 | J16: =$J$15*F16 -> 58380
B17: POTÊNCIA DAS BATERIAS EP5 INSUFICIENTE NO MODO OFF-GRID - CONSIDERE MAIS BATERIAS (AUMENTANDO A AUTONOMIA), OUTRAS FONTES DE ENERGIA (EX.: FOTOVOLTAICO), OU UTILIZE A EP11 | C17: Low Bat Power | E17: 12 | F17: 3 | G17: =$G$15*F17 -> 30618 | H17: =H$15*$F17 -> 33174 | I17: 50499 | J17: 87570
B18: REDUZA A POTÊNCIA DE PICO DAS CARGAS, PARA VIABILIZAR O SISTEMA | C18: Too much Peak Power | E18: 13 | F18: 4 | G18: 40824 | H18: 44232 | I18: 67332 | J18: 116760
B19: PARA SISTEMAS COM BATERIAS EP5, CONSIDERE O USO DE 2 JUNCTION BOX | C19: EP5 in Parallel | E19: 14 | F19: 5 | G19: 51030 | H19: 55290 | I19: 84165 | J19: 145950 | L19: PV MODULES | M19: QTY | N19: Voc | O19: Vmp | P19: Imax | Q19: Isc | R19: Power
B20: CUIDADO COM O TEMPO DE CARGA DAS BATERIAS | E20: 15 | F20: 6 | G20: 61236 | H20: 66348 | I20: 100997 | J20: 175140
B21: INVERSORES NÃO SUPORTAM A POTÊNCIA DE PICO | C21: Too much Power | E21: 16 | F21: 7 | G21: 71442 | H21: 77406 | I21: 117830 | J21: 204330
B22: QUANTIDADE DAS CARGAS ZERADA | C22: No Loads | E22: 17 | F22: 8 | G22: 81648 | H22: 88464 | I22: 134663 | J22: 233520
B23: O FATOR DE POTÊNCIA DEVE ESTAR ENTRE 0.8 E 1 | C23: PF out of bounds | E23: 18 | F23: 9 | G23: 91854 | H23: 99522 | I23: 151496 | J23: 262710
E24: 19 | F24: 10 | G24: 102060 | H24: 110580 | I24: 168329 | J24: 291900
L25: Max. Array Power | M25: Recommended PV Power | N25: Max PV Voltage | O25: Min MPPT Voltage | P25: Max MPPT Voltage | Q25: Max PV I | R25: PV Isc | S25: MPPTs | T25: Input per MPPT
F26: Minimum Power: | G26: =MIN(IF(G6:G24>=$H$3,G6:G24)) -> 7290 | H26: =MIN(IF(H6:H24>=$H$3,H6:H24)) -> 5529 | I26: =MIN(IF(I6:I24>=$H$3,I6:I24)) -> 11189.5 | J26: =MIN(IF(J6:J24>=$H$3,J6:J24)) -> 19460 | L26: =VLOOKUP($G$68,Inverters[#All],9,0) -> 11400 | M26: =VLOOKUP($G$68,Inverters[#All],10,0) -> 11400 | N26: =VLOOKUP($G$68,Inverters[#All],11,0) -> 600 | O26: =VLOOKUP($G$68,Inverters[#All],12,0) -> 80 | P26: =VLOOKUP($G$68,Inverters[#All],13,0) -> 550 | Q26: =VLOOKUP($G$68,Inverters[#All],14,0) -> 14 | R26: =VLOOKUP($G$68,Inverters[#All],15,0) -> 28 | S26: =VLOOKUP($G$68,Inverters[#All],16,0) -> 3 | T26: =VLOOKUP($G$68,Inverters[#All],17,0) -> 1
F27: REF: | G27: =_xlfn.XLOOKUP( MIN(_xlfn._xlws.FILTER(InvtCalc[Single Phase],InvtCalc[Single Phase]>=$H$3)), InvtCalc[Single Phase], InvtCalc[REF] ) -> 5 | H27: =_xlfn.XLOOKUP( MIN(_xlfn._xlws.FILTER(InvtCalc[Split phase],InvtCalc[Split phase]>=$H$3)), InvtCalc[Split phase], InvtCalc[REF] ) -> 1 | I27: =_xlfn.XLOOKUP( MIN(_xlfn._xlws.FILTER(InvtCalc[3x 220],InvtCalc[3x 220]>=$H$3)), InvtCalc[3x 220], InvtCalc[REF] ) -> 1 | J27: =_xlfn.XLOOKUP( MIN(_xlfn._xlws.FILTER(InvtCalc[3x 380],InvtCalc[3x 380]>=$H$3)), InvtCalc[3x 380], InvtCalc[REF] ) -> 1
B28: Bat Autonomy | F28: Model: | G28: =_xlfn.IFS(G27<5,'PRODUCT DATA'!B3,G27<9,'PRODUCT DATA'!B4,G27<=19,'PRODUCT DATA'!B5) -> KH7.5 | H28: =_xlfn.IFS(H27<5,'PRODUCT DATA'!B6,H27<9,'PRODUCT DATA'!B7,H27<=19,'PRODUCT DATA'!B8) -> H1-5.7-US | I28: =_xlfn.IFS(I27<5,'PRODUCT DATA'!B9,I27<9,"ERRO",I27<=19,'PRODUCT DATA'!B11) -> H3-PRO-11.5 | J28: =_xlfn.IFS(J27<5,'PRODUCT DATA'!B10,J27<9,"ERRO",J27<=19,'PRODUCT DATA'!B12) -> H3-PRO-20.0
B29: 1 | F29: Qty: | G29: =ROUNDUP(G26/VLOOKUP(G28,Inverters[#All],2,0),0) -> 1 | H29: =ROUNDUP(H26/VLOOKUP(H28,Inverters[#All],2,0),0) -> 1 | I29: =ROUNDUP(I26/VLOOKUP(I28,Inverters[#All],2,0),0) -> 1 | J29: =ROUNDUP(J26/VLOOKUP(J28,Inverters[#All],2,0),0) -> 1
B30: 2
B31: 3
B32: 4 | G32: kWp required: | H32: =DIMENSIONAMENTO!J26*1000 -> 4988.00
B33: 5 | E33: REF | F33: Qty | G33: Monofásica | H33: Bifásica | I33: Tri220 | J33: Tri380
B34: 6 | E34: 1 | F34: 1 | G34: ='PRODUCT DATA'!E3*'PRODUCT DATA'!G3 -> 5335 | H34: ='PRODUCT DATA'!$E$6*F34 -> 7695 | I34: ='PRODUCT DATA'!E$9*F34*'PRODUCT DATA'!G9 -> 12260 | J34: ='PRODUCT DATA'!$E$10*F34*'PRODUCT DATA'!G10 -> 23352
B35: 7 | E35: 2 | F35: 2 | I35: =I34*F35 -> 24520 | J35: =J34*F35 -> 46704
B36: 8 | E36: 3 | F36: 3
B37: 10 | C37: Nominal Voltage | E37: 4 | F37: 4
B38: 12 | C38: 380 | E38: 5 | F38: 1 | G38: ='PRODUCT DATA'!E4*'PRODUCT DATA'!G4 -> 9720 | H38: ='PRODUCT DATA'!$E$7*F38 -> 10125
B39: 18 | C39: 220 | E39: 6 | F39: 2 | G39: =G38*$F39 -> 19440 | H39: ='PRODUCT DATA'!$E$7*F39 -> 20250
B40: 24 | C40: 127 | E40: 7 | F40: 3
E41: 8 | F41: 4
C42: Grid Type | E42: 9 | F42: 5
C43: Monofásica (220 V) | E43: 10 | F43: 1 | G43: ='PRODUCT DATA'!E5*'PRODUCT DATA'!G5 -> 14580 | H43: ='PRODUCT DATA'!$E$8*F43*'PRODUCT DATA'!G8 -> 14927 | I43: ='PRODUCT DATA'!$E$11*F43*'PRODUCT DATA'!G11 -> 18487 | J43: ='PRODUCT DATA'!$E$12*F43*'PRODUCT DATA'!G12 -> 35028
C44: Bifásica (127/220 V) | E44: 11 | F44: 2 | G44: =$G$43*$F44 -> 29160 | H44: =$H$43*F44 -> 29855 | I44: =$I$43*F44 -> 36974 | J44: =$J$43*F44 -> 70056
C45: Trifásica (220/380 V) | E45: 12 | F45: 3 | G45: 43740 | H45: 44782 | I45: 55461 | J45: 105084
C46: Trifásica (127/220 V) | E46: 13 | F46: 4 | G46: 58320 | H46: 59709 | I46: 73948 | J46: 140112
E47: 14 | F47: 5 | G47: 72900 | H47: 74637 | I47: 92435 | J47: 175140
C48: Other Values | E48: 15 | F48: 6 | G48: 87480 | H48: 89564 | I48: 110922 | J48: 210168
C49: 1000 | E49: 16 | F49: 7 | G49: 102060 | H49: 104491 | I49: 129409 | J49: 245196
C50: 0.8 | E50: 17 | F50: 8 | G50: 116640 | H50: 119419 | I50: 147896 | J50: 280224
C51: 1 | E51: 18 | F51: 9 | G51: 131220 | H51: 134346 | I51: 166383 | J51: 315252
C52: 2 | E52: 19 | F52: 10 | G52: 145800 | H52: 149273 | I52: 184870 | J52: 350280
C53: 3 | E53: 20 | F53: 11 | G53: 160380 | H53: =$H$43*F53 -> 164201 | I53: =$I$43*F53 -> 203357 | J53: =$J$43*F53 -> 385308
C54: 4 | E54: 21 | F54: 12 | G54: 174960 | H54: 179128 | I54: 221844 | J54: 420336
E55: 22 | F55: 13 | G55: 189540 | H55: 194055 | I55: 240331 | J55: 455364
F57: Minimum Power: | G57: =MIN(IF(InvCalcPeak[Monofásica]>=$H$32,InvCalcPeak[Monofásica])) -> 5335 | H57: =MIN(IF(InvCalcPeak[Bifásica]>=$H$32,InvCalcPeak[Bifásica])) -> 7695 | I57: =MIN(IF(InvCalcPeak[Tri220]>=$H$32,InvCalcPeak[Tri220])) -> 12259.8 | J57: =MIN(IF(InvCalcPeak[Tri380]>=$H$32,InvCalcPeak[Tri380])) -> 23352
F58: Ref: | G58: =_xlfn.XLOOKUP( MIN(_xlfn._xlws.FILTER(InvCalcPeak[Monofásica],InvCalcPeak[Monofásica]>=$H$32)), InvCalcPeak[Monofásica], InvCalcPeak[REF] ) -> 1 | H58: =_xlfn.XLOOKUP( MIN(_xlfn._xlws.FILTER(InvCalcPeak[Bifásica],InvCalcPeak[Bifásica]>=$H$32)), InvCalcPeak[Bifásica], InvCalcPeak[REF] ) -> 1 | I58: =_xlfn.XLOOKUP( MIN(_xlfn._xlws.FILTER(InvCalcPeak[Tri220],InvCalcPeak[Tri220]>=$H$32)), InvCalcPeak[Tri220], InvCalcPeak[REF] ) -> 1 | J58: =_xlfn.XLOOKUP( MIN(_xlfn._xlws.FILTER(InvCalcPeak[Tri380],InvCalcPeak[Tri380]>=$H$32)), InvCalcPeak[Tri380], InvCalcPeak[REF] ) -> 1
F59: Model: | G59: =_xlfn.IFS(G58<5,'PRODUCT DATA'!B3,G58<9,'PRODUCT DATA'!B4,G58<=19,'PRODUCT DATA'!B5) -> H1-5.0-E-G2 | H59: =_xlfn.IFS(H58<5,'PRODUCT DATA'!B6,H58<9,'PRODUCT DATA'!B7,H58<=19,'PRODUCT DATA'!B8) -> H1-5.7-US | I59: =_xlfn.IFS(I58<5,'PRODUCT DATA'!B9,I58<9,"ERRO",I58<=19,'PRODUCT DATA'!B11) -> H3-PRO-11.5 | J59: =_xlfn.IFS(J58<5,'PRODUCT DATA'!B9,J58<9,"ERRO",J58<=19,'PRODUCT DATA'!B11) -> H3-PRO-11.5
F60: Qty: | G60: =VLOOKUP(G58,InvCalcPeak[#All],2,0) -> 1 | H60: =VLOOKUP(H58,InvCalcPeak[#All],2,0) -> 1 | I60: =VLOOKUP(I58,InvCalcPeak[#All],2,0) -> 1 | J60: =VLOOKUP(J58,InvCalcPeak[#All],2,0) -> 1
G64: Check Peak:
F65: Calc over Nom Power: | G65: =_xlfn.IFS(DIMENSIONAMENTO!C7='CALC.'!C43,'CALC.'!G28,DIMENSIONAMENTO!C7='CALC.'!C44,'CALC.'!H28,DIMENSIONAMENTO!C7='CALC.'!C45,'CALC.'!J28,DIMENSIONAMENTO!C7='CALC.'!C46,'CALC.'!I28) -> H1-5.7-US | H65: =_xlfn.IFS(DIMENSIONAMENTO!C7='CALC.'!C43,'CALC.'!G29,DIMENSIONAMENTO!C7='CALC.'!C44,'CALC.'!H29,DIMENSIONAMENTO!C7='CALC.'!C45,'CALC.'!J29,DIMENSIONAMENTO!C7='CALC.'!C46,'CALC.'!I29) -> 1
F66: Calc over Peak Power: | G66: =_xlfn.IFS(DIMENSIONAMENTO!C7='CALC.'!C43,G59,DIMENSIONAMENTO!C7='CALC.'!C44,'CALC.'!H59,DIMENSIONAMENTO!C7='CALC.'!C45,'CALC.'!J59,DIMENSIONAMENTO!C7='CALC.'!C46,'CALC.'!I59) -> H1-5.7-US | H66: =_xlfn.IFS(DIMENSIONAMENTO!C7=C43,G60,DIMENSIONAMENTO!C7=C44,H60,DIMENSIONAMENTO!C7=C45,J60,DIMENSIONAMENTO!C7=C46,I60) -> 1 | J66: =MAX(VLOOKUP(G65,Inverters[#All],4,0),VLOOKUP(G66,Inverters[#All],4,0)) -> 7695
F68: Final Decision | G68: =IF(VLOOKUP(G65,Inverters[#All],4,0)*H65>H32,G65,G66) -> H1-5.7-US | H68: =IF(H66=0,999,MAX(H65:H66)) -> 1

Sheet RESULTADO
B1: CALCULADORA BACKUP FOX ESS
E6: AVISOS: | I6: =IF( COUNTA(DIMENSIONAMENTO!B9:H24)=0, "", _xlfn.IFNA(VLOOKUP(B10,'PRODUCT DATA'!B2:I12,5,0),"") ) ->  | M6: =IFERROR(_xlfn.IFS(E8='CALC.'!B5,'PRODUCT DATA'!H18,E8='CALC.'!B6,'PRODUCT DATA'!H16),"") -> 
B7: Lista de Produtos (Total Fox ESS) | E7: =_xlfn.LET( _xlpm.QtdEquip, SUM(Equipmentos[Quantidade]), _xlpm.DimVazio, COUNTA(DIMENSIONAMENTO!B9:H24)=0, _xlpm.FaixaInvalida, OR( COUNTIF(DIMENSIONAMENTO!G9:G24,"<0.8")>0, COUNTIF(DIMENSIONAMENTO!G9:G24,">1")>0 ), _xlpm.TipoAlta, OR(B10='PRODUCT DATA'!B9,B10='PRODUCT DATA'!B10,B10='PRODUCT DATA'!B11,B10='PRODUCT DATA'!B12), _xlpm.TipoMedia, OR(B10='PRODUCT DATA'!B3,B10='PRODUCT DATA'!B4,B10='PRODUCT DATA'!B5,B10='PRODUCT DATA'!B6,B10='PRODUCT DATA'!B7,B10='PRODUCT DATA'!B8), IF( B10="","", IF( _xlpm.QtdEquip=0,"", IF( _xlpm.DimVazio,"", IF( _xlpm.FaixaInvalida, 'CALC.'!B23, IFERROR( _xlfn.IFS( AND(_xlpm.TipoAlta,('CALC.'!R12/RESULTADO!C10)>8), 'CALC.'!B14, AND(_xlpm.TipoMedia,('CALC.'!R12/RESULTADO!C10)>4), 'CALC.'!B13, AND('CALC.'!N11>1,'CALC.'!R11<2), 'CALC.'!B15, AND(_xlpm.TipoAlta,C15/C10<3,'CALC.'!N12/C10>2,C13<>""), 'CALC.'!B15, AND(_xlpm.TipoAlta,C15<5,C13>5,C13<>""), 'CALC.'!B19 ), "" ) ) ) ) ) ) -> 
B8: Modelo | C8: Quantidade | E8: =IF(SUM(Equipmentos[Quantidade])=0,'CALC.'!B22,IF( COUNTA(DIMENSIONAMENTO!B9:H24)=0, "", _xlfn.IFNA(_xlfn.IFS('CALC.'!H66=0,'CALC.'!B21,C10>10,'CALC.'!B3,C10<2,"",C10>4,'CALC.'!B4,B10='PRODUCT DATA'!B6,'CALC.'!B5,B10='PRODUCT DATA'!B7,'CALC.'!B5,B10='PRODUCT DATA'!B8,'CALC.'!B5,B10='PRODUCT DATA'!B9,'CALC.'!B6,B10='PRODUCT DATA'!B11,'CALC.'!B6,B10='PRODUCT DATA'!B10,'CALC.'!B6,B10='PRODUCT DATA'!B12,'CALC.'!B6,B10='PRODUCT DATA'!B3,"",B10='PRODUCT DATA'!B4,"",B10='PRODUCT DATA'!B5,""),"") )) ->  | K8: =IF(M6="","","+") -> 
B10: =IF('CALC.'!H68>4,"",IF(SUM(Equipmentos[Quantidade])=0,"",IF( COUNTA(DIMENSIONAMENTO!B9:H24)=0,"", _xlfn.IFNA('CALC.'!G68,"") ))) -> H1-5.7-US | C10: =IF(SUM(Equipmentos[Quantidade])=0,"",IF( COUNTA(DIMENSIONAMENTO!B9:H24)=0, "", _xlfn.IFNA(IF(B10="","",'CALC.'!H68),"") )) -> 1 | E10: =IF(SUM(Equipmentos[Quantidade])=0,"",IF( COUNTA(DIMENSIONAMENTO!B9:H24)=0, "", _xlfn.IFNA(_xlfn.IFS( SUMPRODUCT( --(DIMENSIONAMENTO!H8:H24=""), --(MMULT(--(DIMENSIONAMENTO!B8:H24<>""),TRANSPOSE(COLUMN(DIMENSIONAMENTO!B8:H8)^0))>0) )>0, 'CALC.'!B10, SUMPRODUCT( --(DIMENSIONAMENTO!D8:D24=""), --(MMULT(--(DIMENSIONAMENTO!B8:H24<>""),TRANSPOSE(COLUMN(DIMENSIONAMENTO!B8:H8)^0))>0) )>0, 'CALC.'!B11, SUMPRODUCT( --(DIMENSIONAMENTO!G8:G24=""), --(MMULT(--(DIMENSIONAMENTO!B8:H24<>""),TRANSPOSE(COLUMN(DIMENSIONAMENTO!B8:H8)^0))>0) )>0, 'CALC.'!B9, OR( AND(DIMENSIONAMENTO!C7='CALC.'!C43, OR(COUNTIF(Equipmentos[Tensão Nominal '[V']],127)>0, COUNTIF(Equipmentos[Tensão Nominal '[V']],380)>0) ), AND(DIMENSIONAMENTO!C7='CALC.'!C44, COUNTIF(Equipmentos[Tensão Nominal '[V']],380)>0 ), AND(DIMENSIONAMENTO!C7='CALC.'!C45, COUNTIF(Equipmentos[Tensão Nominal '[V']],127)>0 ), AND(DIMENSIONAMENTO!C7='CALC.'!C46, COUNTIF(Equipmentos[Tensão Nominal '[V']],380)>0 ) ), 'CALC.'!B8, TRUE, "" ),"") )) -> 
B11: =IFERROR(IF(OR('CALC.'!N11>1,'CALC.'!R11>1),'PRODUCT DATA'!B15,""),"") ->  | C11: =IF( B11<>"HV Junction-Box", "", IFERROR( IF( OR( AND(N($C$13)>0, N($C$13)/N($C$10)=3), AND(N($C$15)>0, N($C$15)/N($C$10)=3) ), $C$10, _xlfn.LET( _xlpm.inversores, N($C$10), _xlpm.entradas, N(VLOOKUP(B10,Inverters[#All],8,0)), _xlpm.total_bat, N($C$13)+N($C$15), MIN(INT(_xlpm.total_bat/2), _xlpm.entradas*_xlpm.inversores) ) ), "" ) ) -> 
B12: =IF(SUM(Equipmentos[Quantidade])=0,"",IFERROR(_xlfn.IFS(E8='CALC.'!B5,'PRODUCT DATA'!B18,E8='CALC.'!B6,'PRODUCT DATA'!B16),"")) ->  | C12: =IF(SUM(Equipmentos[Quantidade])=0,"",IF(B12="","","1.00")) ->  | E12: DICAS: | I12: =IF(C11="","",'PRODUCT DATA'!H15) -> 
B13: =IF(B10="","",IF(SUM(Equipmentos[Quantidade])=0,"",IF( COUNTA(DIMENSIONAMENTO!B9:H24)=0, "", _xlfn.IFNA(IF('CALC.'!N12/C10<5,'PRODUCT DATA'!J15,""),"") ))) -> EP5 | C13: =IF(SUM(Equipmentos[Quantidade])=0,"",IF( COUNTA(DIMENSIONAMENTO!B9:H24)=0, "", _xlfn.IFNA(IF(B13="","",'CALC.'!N14),"") )) -> 1 | E13: =IF(SUM(Equipmentos[Quantidade])=0,"",IF( OR( B10="ERRO", 'CALC.'!N14>'CALC.'!N12, 'CALC.'!R14>'CALC.'!R12, 'CALC.'!H68>'CALC.'!H65, 'CALC.'!G68<>'CALC.'!G65 ), 'CALC.'!B18, IF( SUM(Equipmentos[Quantidade])=0, "", IF( COUNTA(DIMENSIONAMENTO!B9:H24)=0, "", _xlfn.IFNA( _xlfn.IFS( C18>=F22, 'CALC.'!B16, C18>=F18, 'CALC.'!B17 ), "" ) ) ) )) -> 
B14: =IF(B13<>"","OU","") -> OU
B15: =IF(B10="","",IF(SUM(Equipmentos[Quantidade])=0,"",IF( COUNTA(DIMENSIONAMENTO!B9:H24)=0, "", _xlfn.IFNA('PRODUCT DATA'!J16,"") ))) -> EP11 | C15: =IF(B10="","",IF(SUM(Equipmentos[Quantidade])=0,"",IF( COUNTA(DIMENSIONAMENTO!B9:H24)=0, "", _xlfn.IFNA('CALC.'!R14,"") ))) -> 1 | I15: =IF(B13="","",VLOOKUP(B13,'PRODUCT DATA'!J14:R19,9,0)) ->  | M15: =IF(B15="","",VLOOKUP(B15,'PRODUCT DATA'!J14:R19,9,0)) -> 
E16: Potência Alcançada (Inversor) [kW] | F16: =IF(SUM(Equipmentos[Quantidade])=0,"",IFERROR(VLOOKUP(B10,Inverters[#All],MATCH(Inverters[[#Headers],[Max Power EPS '[W']]],Inverters[#Headers],0),FALSE)*C10/1000*VLOOKUP(B10,Inverters[#All],6,0),"")) -> 5.53
K17: =B14 -> OU
B18: Potência Necessária (kW) | C18: =IF(SUM(Equipmentos[Quantidade])=0,"",IF(COUNTA(DIMENSIONAMENTO!B9:H24)=0,"",DIMENSIONAMENTO!I26)) -> 4.99 | E18: Potência Alcançada EP5 [kW] | F18: =IF(C13="","",'CALC.'!N9) -> 5.18
B19: Autonomia Desejada [h] | C19: =IF(SUM(Equipmentos[Quantidade])=0,"",IF(COUNTA(DIMENSIONAMENTO!B9:H24)=0,"",DIMENSIONAMENTO!C6)) -> 2 | E19: Autonomia Alcançada (EP5 - plena carga) [h] | F19: =IF(C13="","",F20*C19/C20) -> 2.78
B20: Capacidade Necessária (kWh) | C20: =IF(SUM(Equipmentos[Quantidade])=0,"",IF( COUNTA(DIMENSIONAMENTO!B9:H24)=0, "", IF( OR(DIMENSIONAMENTO!K26="", DIMENSIONAMENTO!C6=""), "", DIMENSIONAMENTO!K26/24*DIMENSIONAMENTO!C6 ) )) -> 3.18 | E20: Capacidade Alcançada (EP5) [kWh] | F20: =IFERROR(IF(C13="","",'CALC.'!M9),"") -> 4.43
E22: Potência Alcançada EP11 [kW] | F22: =IF(C15="","",IF(SUM(Equipmentos[Quantidade])=0,"",IF( COUNTA(DIMENSIONAMENTO!B9:H24)=0, "", _xlfn.IFNA('CALC.'!R9,"") ))) -> 10.36
E23: Autonomia Alcançada (EP11 - plena carga) [h] | F23: =IF(C15="","",IF(SUM(Equipmentos[Quantidade])=0,"",IF( COUNTA(DIMENSIONAMENTO!B9:H24)=0, "", _xlfn.IFNA(F24*C19/C20,"") ))) -> 5.57
E24: Capacidade Alcançada (EP11) [kWh] | F24: =IF(C15="","",IF(SUM(Equipmentos[Quantidade])=0,"",IF( COUNTA(DIMENSIONAMENTO!B9:H24)=0, "", _xlfn.IFNA('CALC.'!Q9,"") ))) -> 8.86
G25: C15=2
G26: ),384*27*2,
G27: AND(
G28: OR(B10=Dados!D9,B10=Dados!D10,B10=Dados!D11,B10=Dados!D12),
G29: C15=3
G30: ),384*27+384*50,
G31: TRUE,VLOOKUP(C15/C10,BatCalc[#All],7,0)*C10
G32: )

Sheet Versions Log (hidden)
C3: Version | D3: Date | E3: Upgrades
C4: 2 | D4: 4577600.00%
C5: 3.1 | D5: 4593300.00%
C6: 4.2 | D6: 4596000.00%
C7: 4.2.1 | D7: 4597200.00%
C8: 5.1 | D8: 4601000.00% | E8: Removed H3-12 Included H3-PRO-30 Included PF calculations Included Peak Power Calculations Added Battery Discharge Power Calculations Added Hints Removed Result from DIMENSIONAMENTO tab
C9: 5.2.1 | D9: 4601300.00% | E9: Bug fix In case of more then 4x EP5 per inverter, only EP11 will be recommended Included balance, so all inverter have the same amount of batteries
C10: V5.4 | D10: 4603100.00% | E10: Improvements on Battery Power Calculations Improvements on Battery Qty Calculations Improvements on Inverters Qty Calculations Improvements on Junction Box Qty Calculations Included Batteries and Inverters Efficiency
C11: 5.5 | E11: Included Logs Included EP6 and EP12 Data Included PV data of each inverter Fixed issue when deleting a line from DIMENSIONAMENTO Fixed Peak Power calculations When the DIMENSIONAMENTO tab is blanked or ,quantity is 0 results are blanked Advice when PF is out of range Included Batteries Peak Power Calc.
